fUST/lending_fUST_20260411
["ID","MTS","AMOUNT","RATE_DAILY","PERIOD"]
[420283449,1775910275677,-268.26443725,0.00032369,120]
[420283450,1775910275721,-169.73926768,0.00032369,120]
[420283451,1775910275763,-222.08953023,0.00032369,120]
[420283452,1775910275794,-169.73926768,0.00032369,120]
[420283453,1775910275830,-169.73926768,0.00032369,120]
[420283454,1775910275879,-169.73926768,0.00032369,120]
[420283455,1775910275958,-169.73926768,0.00032369,120]
[420283456,1775910275994,-169.73926768,0.00032369,120]
[420283457,1775910276023,-169.73926768,0.00032369,120]
[420283458,1775910276070,-158.41892519,0.00032369,120]
[420283459,1775910276105,-158.41892519,0.00032369,120]
[420283460,1775910276147,-158.41892519,0.00032369,120]
[420283461,1775910276187,-158.41892519,0.00032369,120]
[420283462,1775910276230,-158.41892519,0.00032369,120]
[420283463,1775910276270,-158.41892519,0.00032369,120]
[420283464,1775910276323,-158.41892519,0.00032369,120]
[420283465,1775910276362,-158.41892515,0.00032369,120]
[420283466,1775910276402,-305.46776182,0.00032369,120]
[420283467,1775910276443,-290.0,0.00032369,120]
[420283468,1775910276472,-152.14097428,0.00032369,120]
[420283469,1775910276521,-183.93056721,0.00032369,120]
[420283470,1775910276559,-194.99977776,0.00032369,120]
[420283471,1775910276598,-154.72190936,0.00032369,120]
[420283472,1775910276641,-154.72190936,0.00032369,120]
[420283473,1775910276679,-11495.42192168,0.00032369,120]
[420283474,1775910276710,-121670.999999,0.00032369,120]
[420283475,1775910276742,-24504.01319546,0.00032369,120]
[420283476,1775910276779,-297.69774399,0.00032369,120]
[420283477,1775910276815,-197.73696471,0.00032369,120]
[420283478,1775910276992,-152.47288453,0.00032369,120]
[420283479,1775910277037,-220.17773882,0.00032369,120]
[420283480,1775910277091,-197.73696471,0.00032369,120]
[420283481,1775910277140,-222.08953004,0.00032369,120]
[420283482,1775910277185,-222.08953003,0.00032369,120]
[420283483,1775910277250,-208.91172,0.00032369,120]
[420283484,1775910277301,-343.68294738,0.00032369,120]
[420283485,1775910277340,-174.84620018,0.00032369,120]
[420283486,1775910277378,-208.91172,0.00032369,120]
[420283487,1775910277418,-343.68294738,0.00032369,120]
[420283488,1775910277464,-208.91172,0.00032369,120]
[420283489,1775910277522,-343.68294738,0.00032369,120]
[420283490,1775910277588,-208.91172,0.00032369,120]
[420283491,1775910277652,-343.68294738,0.00032369,120]
[420283492,1775910277709,-208.91172,0.00032369,120]
[420283493,1775910277770,-343.68294738,0.00032369,120]
[420283494,1775910277803,-208.91172,0.00032369,120]
[420283495,1775910277837,-208.91172,0.00032369,120]
[420283496,1775910277871,-343.68294738,0.00032369,120]
[420283497,1775910277904,-208.91172,0.00032369,120]
[420283498,1775910277931,-343.68294738,0.00032369,120]
[420283499,1775910277970,-343.68294738,0.00032369,120]
[420283500,1775910278008,-208.91172,0.00032369,120]
[420283501,1775910278044,-208.91172,0.00032369,120]
[420283502,1775910278075,-208.91172,0.00032369,120]
[420283503,1775910278106,-208.91172,0.00032369,120]
[420283504,1775910278142,-208.91172,0.00032369,120]
[420283505,1775910278189,-208.91172,0.00032369,120]
[420283506,1775910278223,-208.91172,0.00032369,120]
[420283507,1775910278266,-152.49540495,0.00032369,120]
[420283508,1775910278300,-152.49540494,0.00032369,120]
[420283509,1775910278334,-165.55598906,0.00032369,120]
[420283510,1775910278363,-165.55598906,0.00032369,120]
[420283511,1775910278394,-165.55598906,0.00032369,120]
[420283512,1775910278428,-165.55598906,0.00032369,120]
[420283513,1775910278462,-165.55598906,0.00032369,120]
[420283514,1775910278498,-165.55598906,0.00032369,120]
[420283515,1775910278533,-165.55598906,0.00032369,120]
[420283516,1775910278560,-165.55598906,0.00032369,120]
[420283517,1775910278588,-197.79014119,0.00032369,120]
[420283518,1775910278615,-246.88665174,0.00032369,120]
[420283519,1775910278641,-218.45,0.00032369,120]
[420283520,1775910278669,-220.17773882,0.00032369,120]
[420283521,1775910278697,-172.71878097,0.00032369,120]
[420283522,1775910278734,-153.34494517,0.00032369,120]
[420283523,1775910278778,-220.17773882,0.00032369,120]
[420283524,1775910278828,-153.34494517,0.00032369,120]
[420283525,1775910278871,-153.34494517,0.00032369,120]
[420283526,1775910278941,-153.34494517,0.00032369,120]
[420283527,1775910278983,-153.34494517,0.00032369,120]
[420283528,1775910279015,-153.34494517,0.00032369,120]
[420283529,1775910279054,-153.34494517,0.00032369,120]
[420283530,1775910279090,-297.99459469,0.00032369,120]
[420283531,1775910279128,-297.99459469,0.00032369,120]
[420283532,1775910279161,-297.99459469,0.00032369,120]
[420283533,1775910279204,-297.99459469,0.00032369,120]
[420283534,1775910279249,-297.99459469,0.00032369,120]
[420283535,1775910279299,-297.99459469,0.00032369,120]
[420283536,1775910279345,-297.99459469,0.00032369,120]
[420283537,1775910279387,-297.99459466,0.00032369,120]
[420283538,1775910279430,-202.95628155,0.00032369,120]
[420283539,1775910279471,-202.95628154,0.00032369,120]
[420283540,1775910279498,-283.51080217,0.00032369,120]
[420283541,1775910279552,-175.26991179,0.00032369,120]
[420283542,1775910279579,-202.38941733,0.00032369,120]
[420283543,1775910279633,-184.97105528,0.00032369,120]
[420283544,1775910279689,-202.38941733,0.00032369,120]
[420283545,1775910279769,-175.26991179,0.00032369,120]
[420283546,1775910279825,-175.26991179,0.00032369,120]
[420283547,1775910279855,-5413.01,0.00032369,120]
[420283548,1775910279882,-5413.01,0.00032369,120]
[420283549,1775910279915,-271.47673474,0.00032369,120]
[420283550,1775910279960,-260.75410358,0.00032369,120]
[420283551,1775910279996,-260.75410358,0.00032369,120]
[420283552,1775910280036,-260.75410357,0.00032369,120]
[420283553,1775910280504,63570.37305295,0.00032369,120]
[420283554,1775910280868,1397.31824685,0.00032369,120]
[420283555,1775910281114,710.67728704,0.00032369,120]
[420283556,1775910283455,2645.0,0.00032369,120]
[420283557,1775910283549,583.0,0.00032369,120]
[420283558,1775910318453,3000.0,0.00032369,120]
[420283559,1775910431199,333.33333333,0.00032369,120]
[420283560,1775910432136,333.33333333,0.00032369,120]
[420283561,1775910432501,333.33333333,0.00032369,120]
[420283562,1775910432844,333.33333333,0.00032369,120]
[420283563,1775910433175,333.33333333,0.00032369,120]
[420283564,1775910433521,333.33333333,0.00032369,120]
[420283565,1775910433808,333.33333333,0.00032369,120]
[420283566,1775910434161,333.33333333,0.00032369,120]
[420283567,1775910434462,333.33333333,0.00032369,120]
[420283568,1775910434879,333.33333333,0.00032369,120]
[420283569,1775910435103,333.33333333,0.00032369,120]
[420283570,1775910435676,333.33333333,0.00032369,120]
[420283571,1775910435919,333.33333333,0.00032369,120]
[420283572,1775910436592,333.33333333,0.00032369,120]
[420283573,1775910442278,7738.0,0.00032369,120]
[420283574,1775910442331,6000.0,0.00025,120]
[420283575,1775910443794,9458.09210676,0.00032369,120]
[420283576,1775910443838,9160.60008719,0.00032369,120]
[420283577,1775910445807,500.0,0.00032369,120]
[420283578,1775910504634,6405.07,0.00032369,120]
[420283579,1775910507033,6405.07,0.00032369,120]
[420283581,1775910549689,500.0,0.00032369,120]
[420283582,1775910549990,500.0,0.00032369,120]
[420283583,1775910550267,500.0,0.00032369,120]
[420283584,1775910550617,500.0,0.00032369,120]
[420283585,1775910550863,500.0,0.00032369,120]
[420283586,1775910551093,166.66666669,0.00032369,120]
[420283587,1775910551495,166.66666669,0.00032369,120]
[420283588,1775910551552,500.0,0.00032369,120]
[420283589,1775910551807,500.0,0.00032369,120]
[420283590,1775910552129,500.0,0.00032369,120]
[420283591,1775910552444,500.0,0.00032369,120]
[420283592,1775910552707,500.0,0.00032369,120]
[420283593,1775910552975,170.89,0.00032369,120]
[420283594,1775910563179,2000.0,0.00032369,120]
[420283595,1775910563439,2000.0,0.00032369,120]
[420283596,1775910564047,2000.0,0.00032369,120]
[420283597,1775910564322,1318.34,0.00032369,120]
[420283598,1775910580068,5000.0,0.00032369,120]
[420283599,1775910591009,5000.0,0.00032369,120]
[420283601,1775910593643,5000.0,0.00032369,120]
[420283602,1775910602733,5000.0,0.00032369,120]
[420283603,1775910604646,5000.0,0.00032369,120]
[420283604,1775910616431,5000.0,0.00032369,120]
[420283605,1775910625788,5000.0,0.00032369,120]
[420283618,1775910632619,-531.0,7.919e-05,2]
[420283620,1775910632661,-4706.90808308,8e-05,2]
[420283702,1775910635888,5000.0,0.00032369,120]
[420283740,1775910638944,-1889.74191692,8e-05,2]
[420283743,1775910638956,-300.0,8.158e-05,2]
[420283745,1775910638966,-214.0,8.158e-05,2]
[420283747,1775910638982,-300.0,8.159e-05,2]
[420283749,1775910638992,-300.0,8.159e-05,2]
[420283751,1775910639004,-300.0,8.159e-05,2]
[420283753,1775910639014,-300.0,8.159e-05,2]
[420283755,1775910639024,-300.0,8.159e-05,2]
[420283757,1775910639035,-300.0,8.159e-05,2]
[420283759,1775910639047,-300.0,8.159e-05,2]
[420283761,1775910639057,-300.0,8.159e-05,2]
[420283763,1775910639066,-300.0,8.159e-05,2]
[420283765,1775910639076,-300.0,8.159e-05,2]
[420283767,1775910639092,-300.0,8.159e-05,2]
[420283769,1775910639101,-114.57023323,8.159e-05,2]
[420283773,1775910639146,-185.42976677,8.159e-05,2]
[420283775,1775910639155,-300.0,8.159e-05,2]
[420283777,1775910639173,-300.0,8.159e-05,2]
[420283779,1775910639182,-300.0,8.159e-05,2]
[420283781,1775910639192,-500.0,8.393e-05,2]
[420283783,1775910639202,-500.0,8.393e-05,2]
[420283785,1775910639217,-255.41575154,8.393e-05,2]
[420283787,1775910639227,-508.13493713,8.393e-05,2]
[420283789,1775910639236,-500.0,8.393e-05,2]
[420283791,1775910639246,-500.0,8.393e-05,2]
[420283793,1775910639259,-500.0,8.393e-05,2]
[420283795,1775910639268,-500.0,8.393e-05,2]
[420283797,1775910639277,-500.0,8.417e-05,2]
[420283799,1775910639290,-500.0,8.417e-05,2]
[420283801,1775910639303,-420.47892621,8.417e-05,2]
[420283803,1775910639313,-500.0,8.417e-05,2]
[420283805,1775910639323,-500.0,8.417e-05,2]
[420283807,1775910639333,-500.0,8.417e-05,2]
[420283809,1775910639347,-500.0,8.417e-05,2]
[420283811,1775910639357,-500.0,8.417e-05,2]
[420283813,1775910639366,-500.0,8.417e-05,2]
[420283814,1775910639381,-500.0,8.417e-05,2]
[420283815,1775910639396,-500.0,8.417e-05,2]
[420283816,1775910639406,-500.0,8.417e-05,2]
[420283817,1775910639422,-500.0,8.417e-05,2]
[420283818,1775910639434,-500.0,8.417e-05,2]
[420283819,1775910639444,-500.0,8.417e-05,2]
[420283820,1775910639453,-535.93782214,8.417e-05,2]
[420283821,1775910639469,-500.0,8.417e-05,2]
[420283822,1775910639482,-500.0,8.417e-05,2]
[420283823,1775910639492,-500.0,8.417e-05,2]
[420283824,1775910639504,-500.0,8.417e-05,2]
[420283825,1775910639519,-500.0,8.417e-05,2]
[420283826,1775910639528,-390.56253663,8.417e-05,2]
[420283827,1775910639538,-500.0,8.417e-05,2]
[420283828,1775910639558,-500.0,8.417e-05,2]
[420283829,1775910639573,-500.0,8.417e-05,2]
[420283830,1775910639583,-500.0,8.417e-05,2]
[420283831,1775910639602,-500.0,8.417e-05,2]
[420283832,1775910639620,-500.0,8.417e-05,2]
[420283833,1775910639634,-500.0,8.417e-05,2]
[420283834,1775910639645,-536.72722047,8.417e-05,2]
[420283835,1775910639670,-63.27277953,8.417e-05,2]
[420283836,1775910639686,-3666.82065316,8.418e-05,2]
[420283837,1775910639709,-8231.28197735,8.418e-05,2]
[420283925,1775910641076,5000.0,0.00032369,120]
[420284215,1775910646947,-16691.32151757,8.418e-05,2]
[420284784,1775910656344,5000.0,0.00032369,120]
[420284855,1775910671348,500.0,0.00032369,120]
[420284856,1775910671771,500.0,0.00032369,120]
[420284857,1775910671900,500.0,0.00032369,120]
[420284858,1775910672205,500.0,0.00032369,120]
[420284859,1775910672558,500.0,0.00032369,120]
[420284860,1775910673004,500.0,0.00032369,120]
[420284861,1775910673342,500.0,0.00032369,120]
[420284862,1775910674743,500.0,0.00032369,120]
[420284863,1775910674878,199.43,0.00032369,120]
[420284864,1775910742161,238.8827895,0.00032374,120]
[420284865,1775910742210,754.74734296,0.00032374,120]
[420284866,1775910748219,500.0,0.00032374,120]
[420286935,1775911048483,500.0,0.00032329,120]
[420287729,1775911195676,313.14,0.00030107,120]
[420287748,1775911320770,273.13247,7e-06,2]
[420287749,1775911320818,500.0,7e-06,2]
[420287750,1775911320863,500.0,7e-06,2]
[420287751,1775911320910,500.0,7e-06,2]
[420287752,1775911320951,500.0,7e-06,2]
[420287753,1775911320986,500.0,7e-06,2]
[420287754,1775911321019,500.0,7e-06,2]
[420287755,1775911321052,500.0,7e-06,2]
[420287756,1775911321084,500.0,7e-06,2]
[420287757,1775911321121,500.0,7e-06,2]
[420287758,1775911321159,500.0,7e-06,2]
[420287759,1775911321193,500.0,7e-06,2]
[420287760,1775911321241,200.0,7e-06,2]
[420287766,1775911347515,500.0,0.00032329,120]
[420287783,1775911416898,1127335.87172026,0.00032329,120]
[420287785,1775911527896,218725.15172617,0.00032329,120]
[420287787,1775911546285,6238.88246107,0.00030037,120]
[420287788,1775911549785,475.0,0.0003,120]
[420287789,1775911550262,475.0,0.0003,120]
[420287790,1775911550514,475.0,0.0003,120]
[420287791,1775911550914,475.0,0.0003,120]
[420287792,1775911574939,20045.58225849,0.00030137,120]
[420287802,1775911718490,313.13,0.00030107,120]
[420287803,1775911741086,475.0,0.00029999,120]
[420287804,1775911741403,475.0,0.00029999,120]
[420287805,1775911741752,475.0,0.00029999,120]
[420287806,1775911742007,475.0,0.00029999,120]
[420287836,1775911831796,-226.0,6.77e-06,2]
[420287837,1775911831806,-226.0,6.84e-06,2]
[420287838,1775911831820,-5984.60638372,7e-06,2]
[420288120,1775911841506,-194.26114628,6.93e-06,2]
[420288121,1775911841519,-194.26114628,7e-06,2]
[420288122,1775911841538,-300.0,7.05e-06,2]
[420288123,1775911841552,-241.30193569,7.05e-06,2]
[420288124,1775911841659,-58.69806431,7.05e-06,2]
[420288125,1775911841670,-226.0,7.05e-06,2]
[420288126,1775911841691,-300.0,7.05e-06,2]
[420288127,1775911841701,-300.0,7.06e-06,2]
[420288128,1775911841711,-300.0,7.06e-06,2]
[420288129,1775911841734,-300.0,7.06e-06,2]
[420288130,1775911841744,-300.0,7.06e-06,2]
[420288131,1775911841758,-300.0,7.06e-06,2]
[420288132,1775911841768,-300.0,7.06e-06,2]
[420288133,1775911841786,-300.0,7.06e-06,2]
[420288134,1775911841800,-300.0,7.06e-06,2]
[420288135,1775911841813,-300.0,7.06e-06,2]
[420288136,1775911841826,-300.0,7.06e-06,2]
[420288137,1775911841848,-300.0,7.06e-06,2]
[420288138,1775911841860,-300.0,7.06e-06,2]
[420288139,1775911841873,-300.0,7.06e-06,2]
[420288140,1775911841918,-300.0,7.06e-06,2]
[420288141,1775911841939,-300.0,7.06e-06,2]
[420288142,1775911841959,-250.0,7.16e-06,2]
[420288143,1775911841976,-600.0,7.19e-06,2]
[420288144,1775911841986,-420.0,7.76e-06,2]
[420288145,1775911842012,-720.0,7.91e-06,2]
[420288146,1775911842021,-587.0,8.53e-06,2]
[420288147,1775911842032,-864.0,8.7e-06,2]
[420288148,1775911842052,-823.0,9.38e-06,2]
[420288149,1775911842062,-1000.0,9.57e-06,2]
[420288150,1775911842071,-1152.0,1.032e-05,2]
[420288151,1775911842104,-1000.0,1.053e-05,2]
[420288152,1775911842119,-244.0,1.053e-05,2]
[420288153,1775911842131,-1613.0,1.135e-05,2]
[420288154,1775911842151,-1000.0,1.158e-05,2]
[420288155,1775911842167,-492.0,1.158e-05,2]
[420288156,1775911842202,-2258.0,1.249e-05,2]
[420288157,1775911842212,-1000.0,1.274e-05,2]
[420288158,1775911842226,-737.3181093,1.274e-05,2]
[420288165,1775911843173,-53.6818907,1.274e-05,2]
[420288166,1775911843200,-2445.99546295,1.374e-05,2]
[420288167,1775911843231,-716.00453705,1.374e-05,2]
[420288168,1775911843247,-1000.0,1.401e-05,2]
[420288169,1775911843268,-291.22809298,1.401e-05,2]
[420288170,1775911843294,-708.77190702,1.401e-05,2]
[420288171,1775911843319,-2338.89922786,1.511e-05,2]
[420288172,1775911843499,-2088.10077214,1.511e-05,2]
[420288173,1775911843527,-473.47121862,1.541e-05,2]
[420288174,1775911843542,-526.52878138,1.541e-05,2]
[420288175,1775911843568,-448.3751652,1.541e-05,2]
[420288215,1775911846030,-551.6248348,1.541e-05,2]
[420288216,1775911846048,-579.0,1.541e-05,2]
[420288217,1775911846058,-6068.90550611,1.662e-05,2]
[420288218,1775911846072,-129.09449389,1.662e-05,2]
[420288219,1775911846087,-1000.0,1.696e-05,2]
[420288220,1775911846096,-1000.0,1.696e-05,2]
[420288221,1775911846114,-1000.0,1.696e-05,2]
[420288223,1775911846123,-3143.0,1.829e-05,2]
[420288225,1775911846133,-1000.0,1.865e-05,2]
[420288227,1775911846150,-1000.0,1.865e-05,2]
[420288230,1775911846167,-1000.0,1.865e-05,2]
[420288232,1775911846177,-715.0,1.865e-05,2]
[420288234,1775911846187,-1000.0,2.052e-05,2]
[420288235,1775911846204,-1000.0,2.052e-05,2]
[420288238,1775911846214,-1000.0,2.052e-05,2]
[420288239,1775911846224,-177.0,2.692e-05,2]
[420288241,1775911846236,-204.0,4.692e-05,2]
[420288243,1775911846248,-170.65975802,5e-05,2]
[420288246,1775911846260,-231.0,6.692e-05,2]
[420288247,1775911846274,-500.0,7.642e-05,2]
[420288250,1775911846303,-500.0,7.642e-05,2]
[420288251,1775911846313,-355.34248703,7.642e-05,2]
[420288253,1775911846335,-9995.34919972,8e-05,2]
[420288256,1775911846348,-1820.443458,8e-05,2]
[420288967,1775911902000,767.66271747,0.00028577,120]
[420288982,1775912073380,1215.65,0.00030137,120]
[420288991,1775912256266,297094.56626134,0.00030137,120]
[420288992,1775912280281,197094.56626134,0.00030137,120]
[420288993,1775912298901,100000.0,0.00030137,120]
[420288995,1775912310464,200680.90757891,0.00030137,120]
[420289007,1775912482649,152.0,0.00029666,120]
[420289008,1775912484020,152.0,0.00029675,120]
[420289009,1775912485439,152.0,0.00029675,120]
[420289010,1775912487544,152.0,0.00029684,120]
[420289011,1775912504365,44219.20979012,0.00027,120]
[420289012,1775912505202,3333.7705932,0.00029999,120]
[420289013,1775912507184,197.21576185,0.0003,120]
[420289015,1775912508424,9662.8803753,0.00025,120]
[420289017,1775912512306,5212.27608834,0.00025,120]
[420289018,1775912514758,167.99262514,0.0003,120]
[420289020,1775912518691,8002.289999,0.00025,120]
[420289021,1775912519029,10000.0,0.0002191,120]
[420289022,1775912519374,7355.64341388,0.00026,120]
[420289023,1775912527826,5357.92907141,0.00025,120]
[420289027,1775912531527,300.8045027,0.0003,120]
[420289028,1775912570939,4818.63,0.00030136,120]
[420289029,1775912571171,4818.63,0.00030136,120]
[420289030,1775912571506,4818.63,0.00030136,120]
[420289031,1775912571712,4818.63,0.00030136,120]
[420289032,1775912571994,4818.63,0.00030136,120]
[420289033,1775912572229,4818.63,0.00030136,120]
[420289034,1775912572456,4818.63,0.00030136,120]
[420289035,1775912572699,4818.63,0.00030136,120]
[420289036,1775912572924,4818.63,0.00030136,120]
[420289037,1775912573162,4818.63,0.00030136,120]
[420289038,1775912573624,4818.63,0.00030136,120]
[420289039,1775912573729,4818.63,0.00030136,120]
[420289040,1775912574242,4818.63,0.00030136,120]
[420289041,1775912574473,4818.63,0.00030136,120]
[420289042,1775912574745,4818.63,0.00030136,120]
[420289043,1775912574971,4818.63,0.00030136,120]
[420289044,1775912575399,4818.63,0.00030136,120]
[420289045,1775912575464,4818.63,0.00030136,120]
[420289046,1775912575707,4818.63,0.00030136,120]
[420289047,1775912576891,4818.63,0.00030136,120]
[420289048,1775912577113,4818.63,0.00030136,120]
[420289049,1775912577369,4818.63,0.00030136,120]
[420289050,1775912577596,4818.63,0.00030136,120]
[420289051,1775912578187,4818.85782871,0.00030136,120]
[420289052,1775912579536,3685.83,0.00030136,120]
[420289053,1775912579762,3685.83,0.00030136,120]
[420289054,1775912580135,3685.83,0.00030136,120]
[420289055,1775912580392,3685.83,0.00030136,120]
[420289056,1775912580625,3685.83,0.00030136,120]
[420289057,1775912580847,3685.83,0.00030136,120]
[420289058,1775912581197,3685.83,0.00030136,120]
[420289059,1775912581391,3685.83,0.00030136,120]
[420289060,1775912581605,3685.83,0.00030136,120]
[420289061,1775912582363,3685.83,0.00030136,120]
[420289062,1775912582597,3685.83,0.00030136,120]
[420289063,1775912582831,3685.83,0.00030136,120]
[420289064,1775912583057,3685.83,0.00030136,120]
[420289065,1775912583284,3685.83,0.00030136,120]
[420289066,1775912583506,3685.83,0.00030136,120]
[420289067,1775912583914,3685.83,0.00030136,120]
[420289068,1775912584083,3685.83,0.00030136,120]
[420289069,1775912584674,3685.83,0.00030136,120]
[420289070,1775912584793,3685.83,0.00030136,120]
[420289071,1775912584998,3685.83,0.00030136,120]
[420289072,1775912585208,3685.83,0.00030136,120]
[420289073,1775912585428,3685.83,0.00030136,120]
[420289074,1775912586014,3685.83,0.00030136,120]
[420289075,1775912586263,3685.92022294,0.00030136,120]
[420289077,1775912592175,162.08,0.00030137,120]
[420289078,1775912595235,4003.12,0.00030136,120]
[420289079,1775912595336,4003.12,0.00030136,120]
[420289080,1775912595583,4003.12,0.00030136,120]
[420289081,1775912595859,4003.12,0.00030136,120]
[420289082,1775912596143,4003.12,0.00030136,120]
[420289083,1775912596302,4003.12,0.00030136,120]
[420289084,1775912596524,4003.12,0.00030136,120]
[420289085,1775912596796,4003.12,0.00030136,120]
[420289086,1775912597093,4003.12,0.00030136,120]
[420289087,1775912597323,4003.12,0.00030136,120]
[420289088,1775912597457,4239.46,0.00030136,120]
[420289089,1775912597508,4003.12,0.00030136,120]
[420289090,1775912597700,4239.46,0.00030136,120]
[420289091,1775912597780,4003.12,0.00030136,120]
[420289092,1775912597915,4239.46,0.00030136,120]
[420289093,1775912597998,4003.12,0.00030136,120]
[420289095,1775912598151,4239.46,0.00030136,120]
[420289096,1775912598224,4003.12,0.00030136,120]
[420289097,1775912598391,4239.46,0.00030136,120]
[420289098,1775912598436,4003.12,0.00030136,120]
[420289100,1775912598683,4003.12,0.00030136,120]
[420289101,1775912598732,4239.46,0.00030136,120]
[420289102,1775912598930,4003.12,0.00030136,120]
[420289103,1775912598990,4239.46,0.00030136,120]
[420289104,1775912599175,4239.46,0.00030136,120]
[420289105,1775912599217,4003.12,0.00030136,120]
[420289106,1775912599404,4239.46,0.00030136,120]
[420289107,1775912599441,4003.12,0.00030136,120]
[420289108,1775912599705,4003.12,0.00030136,120]
[420289109,1775912599773,4239.46,0.00030136,120]
[420289110,1775912599935,4003.12,0.00030136,120]
[420289111,1775912600004,4239.46,0.00030136,120]
[420289112,1775912600186,4003.12,0.00030136,120]
[420289113,1775912600249,4239.46,0.00030136,120]
[420289114,1775912600548,4003.12,0.00030136,120]
[420289115,1775912600793,4239.46,0.00030136,120]
[420289116,1775912600861,4003.15884594,0.00030136,120]
[420289117,1775912601180,4239.46,0.00030136,120]
[420289118,1775912601497,4239.46,0.00030136,120]
[420289119,1775912601752,4239.46,0.00030136,120]
[420289120,1775912602233,4239.46,0.00030136,120]
[420289121,1775912602309,4239.46,0.00030136,120]
[420289122,1775912602571,4239.46,0.00030136,120]
[420289123,1775912602919,4239.46,0.00030136,120]
[420289124,1775912603115,4239.46,0.00030136,120]
[420289125,1775912603387,4239.46,0.00030136,120]
[420289126,1775912603793,4239.46,0.00030136,120]
[420289127,1775912604440,4239.5445187,0.00030136,120]
[420289128,1775912604758,500.0,0.00030136,120]
[420289129,1775912604986,500.0,0.00030136,120]
[420289130,1775912605341,500.0,0.00030136,120]
[420289131,1775912605540,500.0,0.00030136,120]
[420289132,1775912605777,500.0,0.00030136,120]
[420289133,1775912625060,500.0,0.00030136,120]
[420289134,1775912625324,500.0,0.00030136,120]
[420289135,1775912625554,500.0,0.00030136,120]
[420289136,1775912625765,500.0,0.00030136,120]
[420289138,1775912647609,2358.44,0.00030136,120]
[420289139,1775912647932,2358.44,0.00030136,120]
[420289140,1775912648140,2358.44,0.00030136,120]
[420289141,1775912648377,2358.44,0.00030136,120]
[420289142,1775912648603,2358.44,0.00030136,120]
[420289143,1775912648868,2358.44,0.00030136,120]
[420289144,1775912649083,2358.44,0.00030136,120]
[420289145,1775912649369,2358.44,0.00030136,120]
[420289146,1775912649610,2358.44,0.00030136,120]
[420289147,1775912649830,2358.44,0.00030136,120]
[420289148,1775912650141,2358.44,0.00030136,120]
[420289149,1775912650503,2358.44,0.00030136,120]
[420289150,1775912650718,2358.44,0.00030136,120]
[420289151,1775912651025,2358.44,0.00030136,120]
[420289152,1775912651256,2358.44,0.00030136,120]
[420289153,1775912651477,2358.44,0.00030136,120]
[420289154,1775912651676,2358.44,0.00030136,120]
[420289155,1775912651922,2358.44,0.00030136,120]
[420289156,1775912652162,2358.44,0.00030136,120]
[420289157,1775912652668,2358.44,0.00030136,120]
[420289158,1775912652812,2358.44,0.00030136,120]
[420289159,1775912653050,2358.44,0.00030136,120]
[420289160,1775912653289,2358.44,0.00030136,120]
[420289161,1775912653811,2358.57276027,0.00030136,120]
[420289162,1775912654314,4150.33,0.00030136,120]
[420289163,1775912654581,4150.33,0.00030136,120]
[420289164,1775912654887,4150.33,0.00030136,120]
[420289165,1775912655091,4150.33,0.00030136,120]
[420289166,1775912655707,4150.33,0.00030136,120]
[420289167,1775912655840,4150.33,0.00030136,120]
[420289168,1775912655939,4150.33,0.00030136,120]
[420289169,1775912656139,4150.33,0.00030136,120]
[420289170,1775912656361,4150.33,0.00030136,120]
[420289171,1775912656598,4150.33,0.00030136,120]